[Event "Serbian League 2024"]
[Site "Bajina Basta"]
[Date "2024.09.29"]
[Round "3.33"]
[White "Milanovic, Danilo"]
[Black "Kovacevic, Aleksandar"]
[Result "1/2-1/2"]
[ECO "E51"]
[WhiteElo "2442"]
[BlackElo "2479"]
[Annotator "TA"]
[PlyCount "124"]
[EventDate "2024.09.26"]
[EventType "team-tourn"]
[EventCountry "SRB"]
[SourceTitle "playchess.com"]
[Source "ChessBase"]
[SourceQuality "1"]
[TimeControl "40/5400+30:1800+30"]

{[%evp 13,124,0,0,-1,15,16,10,0,22,5,10,0,40,42,47,52,52,22,102,90,103,104,88,87,150,135,150,127,145,84,100,104,96,95,97,93,125,65,78,68,69,71,61,36,33,33,33,33,34,35,33,33,62,56,76,39,51,24,19,18,44,11,11,11,12,11,12,12,13,11,11,11,17,15,15,11,15,11,11,10,10,10,15,15,15,15,15,10,15,15,15,15,15,15,15,15,15,15,15,0,15,15,15,15,24,15,22,0,0,0,0,0,0]} 1. d4 {[%emt 1:31:00]} Nf6 {[%emt 1:31:00]} 2. c4 {[%emt 0:00:30]} e6 {[%emt 0:00:30]} 3. Nc3 {[%emt 0:00:30]} Bb4 {[%emt 0:00:30]} 4. e3 {[%emt 0:00:30]} O-O {[%emt 0:00:30]} 5. Bd2 {[%emt 0:00:30]} d5 {[%emt 0:00:30]} 6. Nf3 {[%emt 0:00:30]} b6 {[%emt 0:00:30]} 7. cxd5 {[%emt 0:00:30]} exd5 {[%emt 0:00:30]} 8. Rc1 {[%emt 0:00:30]} a6 {[%emt 0:00:30]} 9. Bd3 {[%emt 0:00:30]} Bd6 {[%emt 0:00:30]} (9... Nbd7 {is interesting.} 10. Qb3 c5 11. Nxd5 Bxd2+ 12. Nxd2 cxd4 13. exd4 Nxd5 14. Qxd5 Nc5) 10. Ne5 {[%emt 0:00:30]} Bb7 {[%emt 0:00:30]} 11. O-O {[%emt 0:00:30][%cal Bh1f1,Bf1f3,Bf3h3][%mdl 32]} c5 {[%emt 0:00:30]} 12. f4 {[%emt 0:00:30]} cxd4 {[%emt 0:00:30]} 13. exd4 {[%emt 0:00:30]} Nc6 {[%emt 0:00:30]} 14. Be3 {[%emt 0:00:30]} Rc8 {[%emt 0:00:30]} 15. Rf3 {[%emt 0:00:30][%cal Oc3d5]} Ne4 {[%emt 0:00:30]} 16. Rh3 $16 {[%emt 0:00:30]} (16. Nxd5 $6 Nxe5 17. dxe5 Rxc1 18. Qxc1 Bxd5 $11) 16... g6 {[%emt 0:00:30] Prevents Qh5} 17. Nxe4 {[%emt 0:00:30]} (17. Nxd5 Bxe5 18. Bxe4 Bg7) 17... dxe4 {[%emt 0:00:30]} 18. Bxe4 {[%emt 0:00:30]} Na5 {[%emt 0:00:30]} (18... Nxe5 $142 19. Bxb7 Rxc1 20. Bxc1 Ng4 21. Qxg4 Qc7) 19. Bxb7 {[%emt 0:00:30]} Nxb7 {[%emt 0:00:30][%cal Ba5b7,Bb7c5,Bc5d7][%mdl 32]} 20. Rf3 {[%emt 0:00:30] White is much more active.} Qe7 {[%emt 0:00:30]} 21. Nc6 {[%emt 0:00:30]} ({White should play} 21. Ng4) 21... Qe4 {[%emt 0:00:30]} 22. d5 {[%emt 0:00:30]} Nc5 {[%emt 0:00:30]} 23. Qd4 {[%emt 0:00:30]} Qf5 {[%emt 0:00:30] Prevents Qf6} 24. b4 {[%emt 0:00:30] Black is weak on the dark squares} Nd7 {[%emt 0:00:30]} 25. Rd1 {[%emt 0:00:30]} (25. Bd2 $16) 25... Rfe8 $14 {[%emt 0:00:30]} 26. Qd3 {[%emt 0:00:30]} (26. h3 {is more complex.} a5 27. bxa5 bxa5 28. g4) 26... Qxd3 {[%emt 0:00:30]} 27. Rxd3 Nf6 {[%emt 0:00:30]} 28. Bxb6 {[%emt 0:01:00]} Nxd5 {[%emt 0:00:30]} 29. Rxd5 {[%emt 0:00:30]} Rxc6 {[%emt 0:00:30]} 30. Bc5 {[%emt 0:00:30]} Bxc5+ {[%emt 0:00:30]} 31. Rxc5 {[%emt 0:00:30][%cal Bd5c5,Bc5c2,Bc2e2][%mdl 4128] Endgame. KRR-KRR} Rd6 {[%emt 0:00:30]} 32. Rc2 {[%emt 0:00:30]} Re4 {[%emt 0:00:30]} 33. a3 {[%emt 0:00:30]} Red4 {[%emt 0:00:30]} 34. Re2 {[%emt 0:00:30]} Kg7 {[%emt 0:00:30]} 35. Kf2 {[%emt 0:00:30]} a5 {[%emt 0:00:30]} 36. bxa5 {[%emt 0:00:30]} R6d5 {[%emt 0:00:30]} ({Don't do} 36... R4d5 37. a6 $11) 37. g3 {[%emt 0:00:30]} Rxa5 {[%emt 0:00:30]} 38. Rb3 {[%emt 0:00:30]} Ra7 {[%emt 0:00:30]} 39. Kf3 {[%emt 0:00:30]} Rda4 {[%emt 0:00:30]} 40. Ree3 {[%emt 0:00:30]} h5 {[%emt 0:00:30]} 41. Red3 {[%emt 0:30:30]} R7a6 {[%emt 0:30:30]} 42. Ke3 {[%emt 0:00:30]} Kf6 {[%emt 0:00:30]} 43. Kf2 {[%emt 0:00:30]} R4a5 {[%emt 0:00:30]} 44. Kg2 {[%emt 0:00:30]} Ra7 {[%emt 0:00:30]} 45. Kh3 {[%emt 0:00:30]} Kg7 {[%emt 0:00:30]} 46. Kh4 {[%emt 0:00:30]} Ra4 {[%emt 0:00:30]} 47. Rf3 {[%emt 0:00:30]} Kh6 {[%emt 0:00:30] [#] Strongly threatening ...g5+.} 48. Kh3 {[%emt 0:00:30]} Kg7 {[%emt 0:00:30]} 49. Kg2 {[%emt 0:00:30]} R7a6 {[%emt 0:00:30]} 50. Rfc3 {[%emt 0:00:30]} Ra7 {[%emt 0:00:30]} 51. Kf2 {[%emt 0:00:30]} Kf6 {[%emt 0:00:30]} 52. Re3 {[%emt 0:00:30]} R7a6 {[%emt 0:00:30]} 53. Ke2 {[%emt 0:00:30]} R4a5 {[%emt 0:00:30]} 54. Red3 {[%emt 0:00:30]} Kf5 {[%emt 0:00:30]} 55. Kf3 {[%emt 0:00:30]} Kf6 {[%emt 0:00:30]} 56. Kg2 {[%emt 0:00:30]} Kg7 {[%emt 0:00:30]} 57. Rdc3 {[%emt 0:00:30]} Ra4 {[%emt 0:00:30]} 58. Kf3 {[%emt 0:00:30]} Kf6 {[%emt 0:00:30]} 59. h3 {[%emt 0:00:30]} Kg7 {[%emt 0:00:30] The position is equal.} 60. g4 {[%emt 0:00:30]} hxg4+ {[%emt 0:00:30]} 61. hxg4 {[%emt 0:00:30]} g5 {[%emt 0:00:30]} 62. fxg5 {[%emt 0:00:30]} Kg6 {[%emt 0:00:30] Blacks defense is rewarded with a draw.   Weighted Error Value: White=0.09 (flawless) /Black=0.09 (flawless) .  Mistake:       	White=2     	Black=2      Inaccurate:     	White=4     	Black=4      OK:         	White=18    	Black=24     Best:        	---       	Black=2} 1/2-1/2

[Event "Serbian League 2024"]
[Site "Bajina Basta"]
[Date "2024.09.29"]
[Round "3.34"]
[White "Brenjo, Slavisa"]
[Black "Spasic, Petar"]
[Result "1-0"]
[ECO "B70"]
[WhiteElo "2376"]
[BlackElo "2304"]
[Annotator "RC"]
[PlyCount "139"]
[EventDate "2024.09.26"]
[EventType "team-tourn"]
[EventCountry "SRB"]
[SourceTitle "playchess.com"]
[Source "ChessBase"]
[SourceQuality "1"]
[TimeControl "40/5400+30:1800+30"]

1. e4 {[%emt 0:00:12]} c5 {[%emt 0:01:09]} 2. Nf3 {[%emt 0:00:14]} g6 {[%emt 0:00:33]} 3. d4 {[%emt 0:15:04]} cxd4 {[%emt 0:00:32]} 4. Nxd4 {[%emt 0:00:08]} Nf6 {[%emt 0:00:38]} 5. Nc3 {[%emt 0:07:03]} d6 {[%emt 0:00:10]} 6. Be2 {[%emt 0:05:39]} Nc6 {[%emt 0:00:11]} 7. Nb3 {[%emt 0:00:25]} Bg7 {[%emt 0:00:09]} 8. O-O {[%emt 0:00:42]} O-O {[%emt 0:01:49]} 9. Bg5 {[%emt 0:00:53]} Be6 {[%emt 0:01:12]} 10. Kh1 {[%emt 0:03:00]} a6 {[%emt 0:03:13]} 11. f4 {[%emt 0:02:14]} b5 {[%emt 0:01:16]} 12. Bf3 {[%emt 0:00:55]} Rc8 {[%emt 0:01:28]} 13. Nd5 {[%emt 0:03:04]} Bxd5 {[%emt 0:07:52]} 14. exd5 {[%emt 0:00:48]} Na5 {[%emt 0:00:08]} 15. Qe2 {[%emt 0:02:15]} Nc4 {[%emt 0:00:30]} 16. c3 {[%emt 0:01:30]} Qb6 {[%emt 0:01:19]} 17. Nd4 {[%emt 0:04:47]} Rfe8 {[%emt 0:00:38]} 18. a4 {[%emt 0:03:02]} Qb7 {[%emt 0:21:03]} 19. axb5 {[%emt 0:07:02]} axb5 {[%emt 0:00:06]} 20. b3 {[%emt 0:04:16]} Nb6 {[%emt 0:00:03]} 21. Nxb5 {[%emt 0:14:48]} Qb8 {[%emt 0:05:57]} 22. Rad1 {[%emt 0:05:25]} Nbd7 {[%emt 0:06:34]} 23. c4 {[%emt 0:01:15]} Nc5 {[%emt 0:00:16]} 24. Rb1 {[%emt 0:06:53]} Nfd7 {[%emt 0:05:05]} 25. Bh4 {[%emt 0:02:27]} Kh8 {[%emt 0:01:48]} 26. Bf2 {[%emt 0:00:52]} e6 {[%emt 0:01:56]} 27. dxe6 {[%emt 0:00:21]} Rxe6 {[%emt 0:00:06]} 28. Qd1 {[%emt 0:00:53]} Nf6 {[%emt 0:00:15]} 29. f5 {[%emt 0:04:39]} gxf5 {[%emt 0:00:13]} 30. Nd4 {[%emt 0:00:14]} Nfe4 {[%emt 0:01:29]} 31. Nxe6 {[%emt 0:00:24]} Nxf2+ {[%emt 0:01:21]} 32. Rxf2 {[%emt 0:00:05]} fxe6 {[%emt 0:00:06]} 33. b4 {[%emt 0:01:01]} Nd7 {[%emt 0:00:46]} 34. c5 {[%emt 0:01:11]} d5 {[%emt 0:00:03]} 35. Rc2 {[%emt 0:01:16]} Ne5 {[%emt 0:00:23]} 36. b5 {[%emt 0:01:34]} Nc4 {[%emt 0:00:14]} 37. Rxc4 {[%emt 0:00:41]} dxc4 {[%emt 0:00:06]} 38. c6 {[%emt 0:00:20]} Qb6 {[%emt 0:06:24]} 39. Qd7 {[%emt 0:00:33]} Rd8 {[%emt 0:00:12]} 40. Qxe6 {[%emt 0:00:25]} Qc5 {[%emt 0:00:18]} 41. b6 {[%emt 0:31:25]} c3 {[%emt 0:30:57]} 42. c7 {[%emt 0:01:01]} Rf8 {[%emt 0:00:03]} 43. Qc6 {[%emt 0:00:00]} Qxc6 {[%emt 0:00:00]} 44. Bxc6 {[%emt 0:00:00]} Be5 {[%emt 0:00:00]} 45. Rc1 {[%emt 0:00:00]} Bxc7 {[%emt 0:00:00]} 46. bxc7 {[%emt 0:00:00]} Rc8 {[%emt 0:00:00]} 47. Rxc3 {[%emt 0:00:00]} Rxc7 {[%emt 0:00:00]} 48. g3 {[%emt 0:00:00]} Kg7 {[%emt 0:00:00]} 49. Kg2 {[%emt 0:00:00]} h5 {[%emt 0:00:00]} 50. h4 {[%emt 0:00:00]} Kf6 {[%emt 0:00:00]} 51. Kf3 {[%emt 0:00:00]} Rc8 {[%emt 0:00:00]} 52. Kf4 {[%emt 0:00:00]} Rd8 {[%emt 0:00:00]} 53. Rc4 {[%emt 0:00:00]} Rd1 {[%emt 0:00:00]} 54. Bf3 {[%emt 0:00:00]} Rf1 {[%emt 0:00:00]} 55. Rc6+ {[%emt 0:00:00]} Kg7 {[%emt 0:00:00]} 56. Ke3 {[%emt 0:00:00]} Kh7 {[%emt 0:00:00]} 57. Rf6 {[%emt 0:00:00]} Rg1 {[%emt 0:00:00]} 58. Kf4 {[%emt 0:00:00]} Kg7 {[%emt 0:00:00]} 59. Rxf5 {[%emt 0:00:00]} Ra1 {[%emt 0:00:00]} 60. Rg5+ {[%emt 0:00:00]} Kh8 {[%emt 0:00:00]} 61. Rxh5+ {[%emt 0:00:00]} Kg7 {[%emt 0:00:00]} 62. Rc5 {[%emt 0:00:00]} Kh8 {[%emt 0:00:00]} 63. g4 {[%emt 0:00:00]} Kg7 {[%emt 0:00:00]} 64. g5 {[%emt 0:00:00]} Ra7 {[%emt 0:00:00]} 65. Be4 {[%emt 0:00:00]} Rf7+ {[%emt 0:00:00]} 66. Bf5 {[%emt 0:00:00]} Rf8 {[%emt 0:00:00]} 67. h5 {[%emt 0:00:00]} Kh8 {[%emt 0:00:00]} 68. g6 {[%emt 0:00:00]} Rb8 {[%emt 0:00:00]} 69. h6 {[%emt 0:00:00]} Re8 {[%emt 0:00:00]} 70. Rc8 {[%emt 0:00:00]} 1-0

[Event "Serbian League 2024"]
[Site "Bajina Basta"]
[Date "2024.09.29"]
[Round "3.35"]
[White "Jovanovic, Dusan D"]
[Black "Omorjan, Dejan"]
[Result "0-1"]
[ECO "A21"]
[WhiteElo "2372"]
[BlackElo "2299"]
[Annotator "RC"]
[PlyCount "80"]
[EventDate "2024.09.26"]
[EventType "team-tourn"]
[EventCountry "SRB"]
[SourceTitle "playchess.com"]
[Source "ChessBase"]
[SourceQuality "1"]
[TimeControl "40/5400+30:1800+30"]

1. c4 {[%emt 0:00:07]} e5 {[%emt 0:00:37]} 2. e3 {[%emt 0:00:20]} d6 {[%emt 0:01:28]} 3. Nc3 {[%emt 0:02:28]} g6 {[%emt 0:01:02]} 4. g3 {[%emt 0:05:30]} Bg7 {[%emt 0:00:08]} 5. Bg2 {[%emt 0:00:07]} f5 {[%emt 0:00:57]} 6. Nge2 {[%emt 0:00:20]} Nf6 {[%emt 0:00:01]} 7. d3 {[%emt 0:00:50]} O-O {[%emt 0:00:38]} 8. O-O {[%emt 0:00:08]} c6 {[%emt 0:03:56]} 9. b3 {[%emt 0:09:56]} Be6 {[%emt 0:01:07]} 10. Bb2 {[%emt 0:00:13]} Bf7 {[%emt 0:01:41]} 11. Qd2 {[%emt 0:01:15]} Na6 {[%emt 0:00:51]} 12. Rab1 {[%emt 0:02:25]} Qd7 {[%emt 0:03:36]} 13. Ba3 {[%emt 0:04:45]} Rad8 {[%emt 0:04:17]} 14. Rfd1 {[%emt 0:04:12]} Rfe8 {[%emt 0:08:07]} 15. b4 {[%emt 0:06:57]} Nc7 {[%emt 0:18:57]} 16. b5 {[%emt 0:19:03]} Ne6 {[%emt 0:04:38]} 17. bxc6 {[%emt 0:08:13]} bxc6 {[%emt 0:00:07]} 18. Qc2 {[%emt 0:06:58]} f4 {[%emt 0:12:20]} 19. exf4 {[%emt 0:04:33]} exf4 {[%emt 0:02:31]} 20. Qa4 {[%emt 0:00:55]} fxg3 {[%emt 0:06:21]} 21. hxg3 {[%emt 0:00:10]} d5 {[%emt 0:12:33]} 22. cxd5 {[%emt 0:02:32]} cxd5 {[%emt 0:01:14]} 23. Qxd7 {[%emt 0:03:31]} Rxd7 {[%emt 0:00:12]} 24. Nb5 {[%emt 0:00:43]} Red8 {[%emt 0:06:50]} 25. Rdc1 {[%emt 0:05:42]} Ng4 {[%emt 0:04:33]} 26. Bh3 {[%emt 0:07:55]} h5 {[%emt 0:00:50]} 27. Bb2 {[%emt 0:02:37]} d4 {[%emt 0:01:18]} 28. Bg2 {[%emt 0:00:21]} a6 {[%emt 0:01:05]} 29. Na3 {[%emt 0:00:14]} Ne5 {[%emt 0:00:54]} 30. Be4 {[%emt 0:01:23]} Ng5 {[%emt 0:00:40]} 31. f4 {[%emt 0:00:58]} Nxe4 {[%emt 0:00:18]} 32. fxe5 {[%emt 0:00:05]} Nd2 {[%emt 0:00:30]} 33. Ra1 {[%emt 0:00:06]} Nf3+ {[%emt 0:00:21]} 34. Kg2 {[%emt 0:00:45]} Nxe5 {[%emt 0:00:22]} 35. Rd1 {[%emt 0:00:05]} Ng4 {[%emt 0:01:49]} 36. Re1 {[%emt 0:00:47]} Bd5+ {[%emt 0:00:40]} 37. Kg1 {[%emt 0:00:07]} Ne5 {[%emt 0:00:12]} 38. Red1 {[%emt 0:00:34]} Bf3 {[%emt 0:00:33]} 39. Rd2 {[%emt 0:00:05]} Bxe2 {[%emt 0:01:02]} 40. Rxe2 {[%emt 0:00:06]} Nxd3 {[%emt 0:00:04]} 0-1

[Event "Serbian League 2024"]
[Site "Bajina Basta"]
[Date "2024.09.29"]
[Round "3.36"]
[White "Pajcin, Lav"]
[Black "Pavlovic, Goran"]
[Result "1/2-1/2"]
[ECO "A55"]
[WhiteElo "2242"]
[BlackElo "2337"]
[Annotator "RC"]
[PlyCount "119"]
[EventDate "2024.09.26"]
[EventType "team-tourn"]
[EventCountry "SRB"]
[SourceTitle "playchess.com"]
[Source "ChessBase"]
[SourceQuality "1"]
[TimeControl "40/5400+30:1800+30"]

1. d4 {[%emt 0:00:08]} Nf6 {[%emt 0:00:14]} 2. c4 {[%emt 0:00:20]} d6 {[%emt 0:00:43]} 3. Nc3 {[%emt 0:00:29]} Nbd7 {[%emt 0:01:45]} 4. Nf3 {[%emt 0:00:28]} e5 {[%emt 0:00:49]} 5. e4 {[%emt 0:00:21]} Be7 {[%emt 0:00:16]} 6. Be2 {[%emt 0:00:18]} O-O {[%emt 0:00:22]} 7. O-O {[%emt 0:00:09]} c6 {[%emt 0:00:07]} 8. Be3 {[%emt 0:01:13]} Qc7 {[%emt 0:01:04]} 9. Qc2 {[%emt 0:02:17]} Re8 {[%emt 0:00:41]} 10. d5 {[%emt 0:06:57]} a5 {[%emt 0:12:19]} 11. a3 {[%emt 0:07:19]} Nb6 {[%emt 0:07:17]} 12. b4 {[%emt 0:12:42]} Bg4 {[%emt 0:00:16]} 13. c5 {[%emt 0:05:32]} Nbd7 {[%emt 0:00:16]} 14. dxc6 {[%emt 0:06:15]} bxc6 {[%emt 0:00:14]} 15. cxd6 {[%emt 0:05:11]} Bxd6 {[%emt 0:00:33]} 16. bxa5 {[%emt 0:00:47]} Qxa5 {[%emt 0:01:57]} 17. a4 {[%emt 0:04:56]} Bb4 {[%emt 0:05:36]} 18. Rfc1 {[%emt 0:08:14]} Nf8 {[%emt 0:02:14]} 19. Nd1 {[%emt 0:02:03]} Rac8 {[%emt 0:01:26]} 20. Nb2 {[%emt 0:00:26]} Bxf3 {[%emt 0:01:32]} 21. Bxf3 {[%emt 0:01:38]} Ne6 {[%emt 0:01:27]} 22. Nc4 {[%emt 0:00:12]} Qc7 {[%emt 0:01:09]} 23. Qb2 {[%emt 0:04:24]} Bc5 {[%emt 0:03:30]} 24. Qxe5 {[%emt 0:03:22]} Bxe3 {[%emt 0:00:14]} 25. Qxc7 {[%emt 0:03:27]} Bxf2+ {[%emt 0:00:34]} 26. Kxf2 {[%emt 0:00:07]} Rxc7 {[%emt 0:00:18]} 27. e5 {[%emt 0:08:58]} Nd7 {[%emt 0:00:27]} 28. a5 {[%emt 0:00:49]} Nd4 {[%emt 0:00:55]} 29. Rcb1 {[%emt 0:04:16]} Kf8 {[%emt 0:05:25]} 30. a6 {[%emt 0:00:13]} Ra8 {[%emt 0:02:22]} 31. Ra5 {[%emt 0:05:51]} Ke7 {[%emt 0:08:33]} 32. Be4 {[%emt 0:02:50]} Raa7 {[%emt 0:02:00]} 33. Nd6 {[%emt 0:01:43]} g6 {[%emt 0:02:28]} 34. Ke3 {[%emt 0:00:19]} Ne6 {[%emt 0:00:14]} 35. Nc4 {[%emt 0:02:14]} Nec5 {[%emt 0:01:50]} 36. Kd4 {[%emt 0:00:47]} Nxe4 {[%emt 0:00:37]} 37. Kxe4 {[%emt 0:00:05]} Rxa6 {[%emt 0:00:11]} 38. Rxa6 {[%emt 0:00:43]} Nc5+ {[%emt 0:00:08]} 39. Kd4 {[%emt 0:00:24]} Nxa6 {[%emt 0:00:27]} 40. Rb6 {[%emt 0:01:04]} Nb4 {[%emt 0:06:33]} 41. Kc5 {[%emt 0:06:36]} Nd3+ {[%emt 0:03:06]} 42. Kd4 {[%emt 0:00:10]} Nf4 {[%emt 0:02:41]} 43. g3 {[%emt 0:00:34]} Ne6+ {[%emt 0:00:21]} 44. Ke4 {[%emt 0:00:19]} Nc5+ {[%emt 0:00:30]} 45. Kd4 {[%emt 0:00:14]} Ne6+ {[%emt 0:05:54]} 46. Ke4 {[%emt 0:00:56]} Kd7 {[%emt 0:01:16]} 47. Rb2 {[%emt 0:02:36]} Ra7 {[%emt 0:03:12]} 48. Rd2+ {[%emt 0:02:25]} Ke7 {[%emt 0:02:45]} 49. Rd6 {[%emt 0:00:37]} Ra6 {[%emt 0:00:34]} 50. h4 {[%emt 0:02:09]} h5 {[%emt 0:05:39]} 51. Ke3 {[%emt 0:03:11]} Ng7 {[%emt 0:00:39]} 52. Kf4 {[%emt 0:04:07]} Nf5 {[%emt 0:00:36]} 53. Rf6 {[%emt 0:00:40]} Ra4 {[%emt 0:13:24]} 54. Rxc6 {[%emt 0:00:44]} Nd4 {[%emt 0:00:21]} 55. Rc7+ {[%emt 0:03:12]} Kd8 {[%emt 0:00:24]} 56. Rd7+ {[%emt 0:01:35]} Kxd7 {[%emt 0:00:23]} 57. Nb6+ {[%emt 0:00:03]} Ke6 {[%emt 0:00:23]} 58. Nxa4 {[%emt 0:00:05]} Kd5 {[%emt 0:00:43]} 59. Nb6+ {[%emt 0:01:04]} Kc5 {[%emt 0:00:44]} 60. Nd7+ {[%emt 0:01:35]} 1/2-1/2